[Event "Late-Titled-Tuesday-Blitz-September-05-2023"]
[Site "Chess.com"]
[Date "2023.09.05"]
[Round "7"]
[White "frederiksvane"]
[Black "rezamahdavi2008"]
[Result "1-0"]
[WhiteElo "2946"]
[BlackElo "2766"]
[TimeControl "180+1"]
[EndTime "15:19:25 PDT"]
[Termination "frederiksvane won by resignation"]

1. c4 {[%clk 0:03:00.9]} 1... Nf6 {[%clk 0:02:59]} 2. Nc3 {[%clk 0:03:00.8]}
2... g6 {[%clk 0:02:57.8]} 3. e4 {[%clk 0:03:01]} 3... d6 {[%clk 0:02:57.8]} 4.
d4 {[%clk 0:03:01.5]} 4... Bg7 {[%clk 0:02:58.5]} 5. Be2 {[%clk 0:03:02.3]} 5...
O-O {[%clk 0:02:58.9]} 6. Be3 {[%clk 0:03:03.1]} 6... c5 {[%clk 0:02:59.4]} 7.
d5 {[%clk 0:03:01.9]} 7... e6 {[%clk 0:03:00.1]} 8. Nf3 {[%clk 0:03:01.1]} 8...
exd5 {[%clk 0:03:00.8]} 9. cxd5 {[%clk 0:03:01.9]} 9... Bg4 {[%clk 0:03:00.5]}
10. O-O {[%clk 0:02:57]} 10... Bxf3 {[%clk 0:03:00.2]} 11. Bxf3 {[%clk
0:02:57.2]} 11... Re8 {[%clk 0:03:01.1]} 12. Qc2 {[%clk 0:02:52.6]} 12... a6
{[%clk 0:02:56]} 13. a4 {[%clk 0:02:51.7]} 13... Nbd7 {[%clk 0:02:46.3]} 14.
Rab1 {[%clk 0:02:51.2]} 14... Rc8 {[%clk 0:02:43.7]} 15. Rfd1 {[%clk 0:02:48.1]}
15... Qa5 {[%clk 0:02:39]} 16. Be2 {[%clk 0:02:38.6]} 16... Qb4 {[%clk 0:02:25]}
17. f3 {[%clk 0:02:29.4]} 17... Nh5 {[%clk 0:02:22.3]} 18. Qd2 {[%clk
0:02:10.4]} 18... f5 {[%clk 0:02:06]} 19. exf5 {[%clk 0:02:07.4]} 19... gxf5
{[%clk 0:02:06.9]} 20. Bf2 {[%clk 0:02:01.7]} 20... Qf4 {[%clk 0:02:01.8]} 21.
Bf1 {[%clk 0:01:50.1]} 21... Qxd2 {[%clk 0:01:52.2]} 22. Rxd2 {[%clk 0:01:51]}
22... Re7 {[%clk 0:01:52.8]} 23. a5 {[%clk 0:01:50.9]} 23... Rce8 {[%clk
0:01:53.1]} 24. Ne2 {[%clk 0:01:39.3]} 24... Bh6 {[%clk 0:01:50.1]} 25. Rc2
{[%clk 0:01:39.4]} 25... Be3 {[%clk 0:01:49.1]} 26. b4 {[%clk 0:01:35.3]} 26...
cxb4 {[%clk 0:01:47.6]} 27. Rxb4 {[%clk 0:01:36.2]} 27... Nc5 {[%clk 0:01:47.7]}
28. Nd4 {[%clk 0:01:34]} 28... Bxf2+ {[%clk 0:01:39.5]} 29. Kxf2 {[%clk
0:01:32.9]} 29... Nf4 {[%clk 0:01:39.5]} 30. Rd2 {[%clk 0:01:20.1]} 30... Re5
{[%clk 0:01:24.1]} 31. Nb3 {[%clk 0:00:59.1]} 31... Nxb3 {[%clk 0:01:14.9]} 32.
Rxb3 {[%clk 0:01:00]} 32... R8e7 {[%clk 0:01:03.1]} 33. g3 {[%clk 0:01:00.1]}
33... Ng6 {[%clk 0:01:03.1]} 34. Rdb2 {[%clk 0:01:00.8]} 34... Kg7 {[%clk
0:00:59.2]} 35. Rxb7 {[%clk 0:00:58.3]} 35... Rxd5 {[%clk 0:00:59.5]} 36. R7b6
{[%clk 0:00:25]} 36... Rxa5 {[%clk 0:00:57.4]} 37. Rxd6 {[%clk 0:00:25.6]} 37...
Ra7 {[%clk 0:00:47.6]} 38. f4 {[%clk 0:00:19.3]} 38... Ne7 {[%clk 0:00:37.1]}
39. h4 {[%clk 0:00:19.3]} 39... Ng8 {[%clk 0:00:35.9]} 40. Rbb6 {[%clk
0:00:08.5]} 40... Ra2+ {[%clk 0:00:32.7]} 41. Kf3 {[%clk 0:00:09]} 41... Rc7
{[%clk 0:00:25]} 42. Bd3 {[%clk 0:00:04.6]} 42... Ne7 {[%clk 0:00:18.8]} 43.
Rxa6 {[%clk 0:00:05.1]} 43... Rxa6 {[%clk 0:00:18]} 44. Rxa6 {[%clk 0:00:05.1]}
44... Rc3 {[%clk 0:00:18.7]} 45. Rd6 {[%clk 0:00:03.1]} 45... Ra3 {[%clk
0:00:18.4]} 46. Ke3 {[%clk 0:00:03.2]} 46... Kf7 {[%clk 0:00:13.5]} 47. Kd4
{[%clk 0:00:02.9]} 47... Kg7 {[%clk 0:00:11.7]} 48. Re6 {[%clk 0:00:02.8]} 48...
Kf7 {[%clk 0:00:10.1]} 49. Bc4 {[%clk 0:00:03.4]} 49... Kf8 {[%clk 0:00:08]} 50.
Bd3 {[%clk 0:00:02.2]} 50... Kf7 {[%clk 0:00:07.2]} 51. Rh6 {[%clk 0:00:02.3]}
51... Kg7 {[%clk 0:00:06.7]} 52. Rb6 {[%clk 0:00:02.9]} 52... Kf7 {[%clk
0:00:06.3]} 53. h5 {[%clk 0:00:02.5]} 53... Ra4+ {[%clk 0:00:05.2]} 54. Bc4+
{[%clk 0:00:02.2]} 54... Ke8 {[%clk 0:00:05.1]} 55. h6 {[%clk 0:00:02.6]} 55...
Ra3 {[%clk 0:00:05]} 56. Rb8+ {[%clk 0:00:02.4]} 56... Kd7 {[%clk 0:00:05.5]}
57. Rh8 {[%clk 0:00:02.3]} 57... Rxg3 {[%clk 0:00:05.5]} 58. Rxh7 {[%clk
0:00:02.5]} 58... Rh3 {[%clk 0:00:06.4]} 59. Ke5 {[%clk 0:00:02]} 59... Re3+
{[%clk 0:00:04.9]} 60. Kf6 {[%clk 0:00:02.5]} 60... Kd6 {[%clk 0:00:05.7]} 61.
Rg7 {[%clk 0:00:02.3]} 61... Nc6 {[%clk 0:00:05.1]} 62. h7 {[%clk 0:00:02.2]}
62... Rh3 {[%clk 0:00:05.8]} 63. Bg8 {[%clk 0:00:02.4]} 63... Nb4 {[%clk
0:00:02]} 64. Rg6 {[%clk 0:00:02.1]} 64... Nd5+ {[%clk 0:00:01.3]} 65. Bxd5
{[%clk 0:00:01.9]} 65... Rxh7 {[%clk 0:00:01.8]} 66. Bf7 {[%clk 0:00:02.2]}
66... Rh3 {[%clk 0:00:01.7]} 67. Kxf5+ {[%clk 0:00:02.5]} 67... Kc5 {[%clk
0:00:02.5]} 68. Be6 {[%clk 0:00:03]} 68... Rh1 {[%clk 0:00:03.3]} 69. Ke5 {[%clk
0:00:03.8]} 69... Re1+ {[%clk 0:00:03.2]} 70. Kf6 {[%clk 0:00:04.4]} 70... Kd6
{[%clk 0:00:04.1]} 71. f5 {[%clk 0:00:05.3]} 71... Rf1 {[%clk 0:00:04.6]} 72.
Rg7 {[%clk 0:00:06]} 72... Rf2 {[%clk 0:00:04.9]} 73. Rd7+ {[%clk 0:00:06.7]}
73... Kc5 {[%clk 0:00:05.6]} 74. Rd3 {[%clk 0:00:07.4]} 74... Rf1 {[%clk
0:00:06.1]} 75. Rd5+ {[%clk 0:00:08]} 1-0

[Event "Late-Titled-Tuesday-Blitz-September-05-2023"]
[Site "Chess.com"]
[Date "2023.09.05"]
[Round "7"]
[White "Rud_Makarian"]
[Black "IMRosen"]
[Result "1-0"]
[WhiteElo "2948"]
[BlackElo "2617"]
[TimeControl "180+1"]
[EndTime "15:19:34 PDT"]
[Termination "Rud_Makarian won on time"]

1. d4 {[%clk 0:03:00.9]} 1... e6 {[%clk 0:03:00.9]} 2. c4 {[%clk 0:03:01.7]}
2... Ne7 {[%clk 0:03:01.5]} 3. Nf3 {[%clk 0:03:02.2]} 3... d6 {[%clk 0:03:02.2]}
4. Nc3 {[%clk 0:03:02.6]} 4... Nd7 {[%clk 0:03:02.9]} 5. h4 {[%clk 0:03:01.8]}
5... h6 {[%clk 0:02:58.1]} 6. h5 {[%clk 0:03:02.1]} 6... Nb6 {[%clk 0:02:53.8]}
7. e4 {[%clk 0:03:01.7]} 7... Nc6 {[%clk 0:02:54.2]} 8. Be2 {[%clk 0:02:59.4]}
8... Be7 {[%clk 0:02:54.1]} 9. Be3 {[%clk 0:03:00]} 9... Bd7 {[%clk 0:02:49.4]}
10. Qd2 {[%clk 0:02:59.6]} 10... e5 {[%clk 0:02:37.6]} 11. d5 {[%clk 0:02:58.5]}
11... Nb8 {[%clk 0:02:36.7]} 12. O-O {[%clk 0:02:55.1]} 12... Bg4 {[%clk
0:02:31.2]} 13. Ne1 {[%clk 0:02:46.8]} 13... Bxe2 {[%clk 0:02:27.1]} 14. Qxe2
{[%clk 0:02:47.7]} 14... N8d7 {[%clk 0:02:21.1]} 15. Nc2 {[%clk 0:02:41]} 15...
Bg5 {[%clk 0:02:21]} 16. b4 {[%clk 0:02:40.1]} 16... Nf6 {[%clk 0:02:17.7]} 17.
c5 {[%clk 0:02:37.5]} 17... Nc8 {[%clk 0:02:03.5]} 18. Rac1 {[%clk 0:02:31.1]}
18... Ne7 {[%clk 0:01:56.7]} 19. g3 {[%clk 0:02:20.1]} 19... Bxe3 {[%clk
0:01:33.9]} 20. Nxe3 {[%clk 0:02:21]} 20... O-O {[%clk 0:01:34.5]} 21. a3 {[%clk
0:02:14.6]} 21... Qd7 {[%clk 0:01:31.3]} 22. Kg2 {[%clk 0:02:12.8]} 22... Rfe8
{[%clk 0:01:24.6]} 23. Rh1 {[%clk 0:02:03.5]} 23... a6 {[%clk 0:01:24.7]} 24.
Qc4 {[%clk 0:01:56.5]} 24... b6 {[%clk 0:01:16.6]} 25. c6 {[%clk 0:01:55.7]}
25... Qc8 {[%clk 0:01:14.4]} 26. a4 {[%clk 0:01:56]} 26... Nh7 {[%clk
0:01:08.4]} 27. a5 {[%clk 0:01:55.4]} 27... b5 {[%clk 0:01:07.8]} 28. Qe2 {[%clk
0:01:55.7]} 28... f5 {[%clk 0:00:58.6]} 29. Rh4 {[%clk 0:01:49]} 29... Rf8
{[%clk 0:00:57.9]} 30. f3 {[%clk 0:01:41.1]} 30... Ng5 {[%clk 0:00:50.9]} 31.
Rf1 {[%clk 0:01:37.9]} 31... Rf6 {[%clk 0:00:46.4]} 32. g4 {[%clk 0:00:47.9]}
32... f4 {[%clk 0:00:25]} 33. Nf5 {[%clk 0:00:47.6]} 33... Qf8 {[%clk
0:00:19.2]} 34. Rfh1 {[%clk 0:00:45]} 34... Qf7 {[%clk 0:00:19.3]} 35. Kf2
{[%clk 0:00:44.7]} 35... Kh7 {[%clk 0:00:19.9]} 36. Ke1 {[%clk 0:00:44.7]} 36...
Nxf5 {[%clk 0:00:17.3]} 37. gxf5 {[%clk 0:00:44.9]} 37... Qf8 {[%clk 0:00:13.5]}
38. Kd2 {[%clk 0:00:45.4]} 38... Qb8 {[%clk 0:00:13.3]} 39. Kc2 {[%clk
0:00:45.9]} 39... Qa7 {[%clk 0:00:13.9]} 40. Rd1 {[%clk 0:00:40]} 40... Rf7
{[%clk 0:00:09.8]} 41. Rg4 {[%clk 0:00:35.9]} 41... Kh8 {[%clk 0:00:09.4]} 42.
Kb3 {[%clk 0:00:33]} 42... Raf8 {[%clk 0:00:08.2]} 43. Rdg1 {[%clk 0:00:24]}
43... Qd4 {[%clk 0:00:05.9]} 44. Rd1 {[%clk 0:00:20.4]} 44... Qa7 {[%clk
0:00:05.8]} 45. Rdg1 {[%clk 0:00:12.3]} 45... Qd4 {[%clk 0:00:05.5]} 46. Rxg5
{[%clk 0:00:12.6]} 46... hxg5 {[%clk 0:00:05.5]} 47. Rxg5 {[%clk 0:00:13.5]}
47... Rf6 {[%clk 0:00:03.8]} 48. Rg6 {[%clk 0:00:13.7]} 48... Qc4+ {[%clk
0:00:03.2]} 49. Qxc4 {[%clk 0:00:13.3]} 49... bxc4+ {[%clk 0:00:04.1]} 50. Kxc4
{[%clk 0:00:14.2]} 50... R6f7 {[%clk 0:00:02.8]} 51. Na4 {[%clk 0:00:09.5]}
51... Rb8 {[%clk 0:00:02.8]} 52. Nc3 {[%clk 0:00:07.6]} 52... Kh7 {[%clk
0:00:03.2]} 53. b5 {[%clk 0:00:07.3]} 53... axb5+ {[%clk 0:00:03]} 54. Nxb5
{[%clk 0:00:08.2]} 54... Ra8 {[%clk 0:00:03.5]} 55. Kb4 {[%clk 0:00:08.7]} 55...
Ra6 {[%clk 0:00:02.1]} 56. Ka4 {[%clk 0:00:07.7]} 56... Ra8 {[%clk 0:00:02.7]}
57. Re6 {[%clk 0:00:07.5]} 57... Kg8 {[%clk 0:00:02.7]} 58. Na3 {[%clk
0:00:04.4]} 58... Kf8 {[%clk 0:00:03.3]} 59. Nc4 {[%clk 0:00:05]} 59... Re7
{[%clk 0:00:03]} 60. Rg6 {[%clk 0:00:05]} 60... Ree8 {[%clk 0:00:03.2]} 61. h6
{[%clk 0:00:04.4]} 61... gxh6 {[%clk 0:00:03]} 62. Rxh6 {[%clk 0:00:05.1]} 62...
Kg7 {[%clk 0:00:03.8]} 63. Rg6+ {[%clk 0:00:05.1]} 63... Kf7 {[%clk 0:00:04.3]}
64. Rh6 {[%clk 0:00:04.1]} 64... Reb8 {[%clk 0:00:04.4]} 65. Rh7+ {[%clk
0:00:04.1]} 65... Kf6 {[%clk 0:00:05]} 66. Rxc7 {[%clk 0:00:04.4]} 66... Rb1
{[%clk 0:00:05.8]} 67. Rb7 {[%clk 0:00:02.8]} 67... Ra1+ {[%clk 0:00:05.6]} 68.
Kb4 {[%clk 0:00:02.7]} 68... Rb1+ {[%clk 0:00:05.9]} 69. Kc3 {[%clk 0:00:03.3]}
69... Rc1+ {[%clk 0:00:06.1]} 70. Kd3 {[%clk 0:00:03.3]} 70... Rf1 {[%clk
0:00:05.2]} 71. Ke2 {[%clk 0:00:03.1]} 71... Ra1 {[%clk 0:00:05.1]} 72. Rd7
{[%clk 0:00:03.1]} 72... Rh8 {[%clk 0:00:04.8]} 73. Rxd6+ {[%clk 0:00:03.3]}
73... Kg5 {[%clk 0:00:05.3]} 74. Rg6+ {[%clk 0:00:03.9]} 74... Kh5 {[%clk
0:00:05.3]} 75. d6 {[%clk 0:00:04.3]} 75... Rb8 {[%clk 0:00:03.8]} 76. Nd2
{[%clk 0:00:02.9]} 76... Rxa5 {[%clk 0:00:02.6]} 77. c7 {[%clk 0:00:03.2]} 77...
Rb2 {[%clk 0:00:01.2]} 78. d7 {[%clk 0:00:03.2]} 78... Raa2 {[%clk 0:00:01.1]}
79. d8=Q {[%clk 0:00:03.7]} 1-0

[Event "Late-Titled-Tuesday-Blitz-September-05-2023"]
[Site "Chess.com"]
[Date "2023.09.05"]
[Round "7"]
[White "Leo_C"]
[Black "vugarrasulov"]
[Result "1/2-1/2"]
[WhiteElo "2653"]
[BlackElo "2958"]
[TimeControl "180+1"]
[EndTime "15:20:54 PDT"]
[Termination "Game drawn - insufficient material"]

1. d4 {[%clk 0:03:00.9]} 1... Nf6 {[%clk 0:02:59.7]} 2. c4 {[%clk 0:03:00.7]}
2... g6 {[%clk 0:02:59.8]} 3. Nc3 {[%clk 0:03:00.7]} 3... d5 {[%clk 0:03:00.1]}
4. cxd5 {[%clk 0:02:56.8]} 4... Nxd5 {[%clk 0:03:01]} 5. e4 {[%clk 0:02:57.4]}
5... Nxc3 {[%clk 0:03:01.3]} 6. bxc3 {[%clk 0:02:58.3]} 6... Bg7 {[%clk
0:03:01.8]} 7. Bc4 {[%clk 0:02:58.5]} 7... c5 {[%clk 0:02:59.5]} 8. Ne2 {[%clk
0:02:58.7]} 8... Nc6 {[%clk 0:02:58.5]} 9. Be3 {[%clk 0:02:58.1]} 9... cxd4
{[%clk 0:02:58.8]} 10. cxd4 {[%clk 0:02:58.2]} 10... b5 {[%clk 0:02:59.1]} 11.
Bd5 {[%clk 0:02:45.8]} 11... Bb7 {[%clk 0:02:59]} 12. O-O {[%clk 0:02:42.4]}
12... e6 {[%clk 0:02:55]} 13. Bb3 {[%clk 0:02:42]} 13... Na5 {[%clk 0:02:54.7]}
14. Bc2 {[%clk 0:02:34.6]} 14... O-O {[%clk 0:02:52.7]} 15. Rb1 {[%clk
0:02:31.4]} 15... a6 {[%clk 0:02:41.2]} 16. a4 {[%clk 0:02:28.1]} 16... Qd7
{[%clk 0:02:27.1]} 17. axb5 {[%clk 0:02:04.2]} 17... axb5 {[%clk 0:02:28]} 18.
Nc3 {[%clk 0:02:00.7]} 18... Ba6 {[%clk 0:02:19.6]} 19. Bd3 {[%clk 0:01:55]}
19... Nc4 {[%clk 0:02:14.7]} 20. Bxc4 {[%clk 0:01:49]} 20... bxc4 {[%clk
0:02:15.6]} 21. Qd2 {[%clk 0:01:44.4]} 21... Rfd8 {[%clk 0:02:08.8]} 22. d5
{[%clk 0:01:43.4]} 22... Bb7 {[%clk 0:01:55.4]} 23. Rfd1 {[%clk 0:01:38.2]}
23... exd5 {[%clk 0:01:53.6]} 24. exd5 {[%clk 0:01:36.6]} 24... Bc8 {[%clk
0:01:35.4]} 25. Bd4 {[%clk 0:01:33.3]} 25... Qg4 {[%clk 0:01:27.8]} 26. Bxg7
{[%clk 0:01:25.1]} 26... Kxg7 {[%clk 0:01:28.7]} 27. h3 {[%clk 0:01:24]} 27...
Qh4 {[%clk 0:01:28.5]} 28. Qe3 {[%clk 0:01:10.2]} 28... Bf5 {[%clk 0:01:26.3]}
29. Rb7 {[%clk 0:01:06.7]} 29... Re8 {[%clk 0:01:16.2]} 30. Qc5 {[%clk
0:00:50.9]} 30... Qf6 {[%clk 0:01:12.6]} 31. Nb5 {[%clk 0:00:41.7]} 31... Ra1
{[%clk 0:01:11.9]} 32. Rxa1 {[%clk 0:00:36.6]} 32... Qxa1+ {[%clk 0:01:12.8]}
33. Kh2 {[%clk 0:00:37.3]} 33... Re1 {[%clk 0:01:03.8]} 34. Nd6 {[%clk
0:00:31.5]} 34... Rh1+ {[%clk 0:01:02.5]} 35. Kg3 {[%clk 0:00:31.5]} 35... Qe5+
{[%clk 0:01:01.1]} 36. Kf3 {[%clk 0:00:18.4]} 36... Be4+ {[%clk 0:00:52.2]} 37.
Nxe4 {[%clk 0:00:16.6]} 37... Qf5+ {[%clk 0:00:52.8]} 38. Kg3 {[%clk 0:00:15.7]}
38... Qxe4 {[%clk 0:00:53.1]} 39. Re7 {[%clk 0:00:12.4]} 39... Qd3+ {[%clk
0:00:49.4]} 40. Re3 {[%clk 0:00:12.4]} 40... Qf5 {[%clk 0:00:31.2]} 41. Qd4+
{[%clk 0:00:12.6]} 41... Qf6 {[%clk 0:00:31.6]} 42. Qxf6+ {[%clk 0:00:12.8]}
42... Kxf6 {[%clk 0:00:32.5]} 43. Rc3 {[%clk 0:00:13.3]} 43... Rd1 {[%clk
0:00:28.7]} 44. Rxc4 {[%clk 0:00:13.5]} 44... Rxd5 {[%clk 0:00:29.3]} 45. Rf4+
{[%clk 0:00:13.6]} 45... Kg7 {[%clk 0:00:29.2]} 46. Rc4 {[%clk 0:00:13.7]} 46...
h6 {[%clk 0:00:27.7]} 47. h4 {[%clk 0:00:13.7]} 47... Rd3+ {[%clk 0:00:28]} 48.
f3 {[%clk 0:00:13.9]} 48... Rd5 {[%clk 0:00:28.5]} 49. Re4 {[%clk 0:00:13.9]}
49... Rd7 {[%clk 0:00:25.8]} 50. Rb4 {[%clk 0:00:13.9]} 50... Kf6 {[%clk
0:00:26.2]} 51. Rb6+ {[%clk 0:00:14.2]} 51... Ke5 {[%clk 0:00:26.7]} 52. Rb5+
{[%clk 0:00:14.7]} 52... Rd5 {[%clk 0:00:27]} 53. Rb7 {[%clk 0:00:14.5]} 53...
Ke6 {[%clk 0:00:26.9]} 54. Rb6+ {[%clk 0:00:14.7]} 54... Rd6 {[%clk 0:00:27.6]}
55. Rb7 {[%clk 0:00:14.8]} 55... Kf6 {[%clk 0:00:27.1]} 56. Rc7 {[%clk
0:00:14.7]} 56... Re6 {[%clk 0:00:26]} 57. Rb7 {[%clk 0:00:14.7]} 57... g5
{[%clk 0:00:24.7]} 58. hxg5+ {[%clk 0:00:14.7]} 58... hxg5 {[%clk 0:00:25.6]}
59. Ra7 {[%clk 0:00:14.8]} 59... Kg6 {[%clk 0:00:25.8]} 60. Rb7 {[%clk
0:00:15.1]} 60... f5 {[%clk 0:00:25.5]} 61. Ra7 {[%clk 0:00:15.3]} 61... Re2
{[%clk 0:00:24.8]} 62. Ra8 {[%clk 0:00:12.6]} 62... f4+ {[%clk 0:00:21.2]} 63.
Kh3 {[%clk 0:00:12.8]} 63... Rb2 {[%clk 0:00:13.7]} 64. Ra6+ {[%clk 0:00:11.7]}
64... Kh5 {[%clk 0:00:12.9]} 65. Ra8 {[%clk 0:00:11.4]} 65... Kg6 {[%clk
0:00:12]} 66. Ra6+ {[%clk 0:00:11.3]} 66... Kh5 {[%clk 0:00:12.4]} 67. Ra8
{[%clk 0:00:11.7]} 67... Rc2 {[%clk 0:00:11.7]} 68. Rb8 {[%clk 0:00:08.7]} 68...
Rd2 {[%clk 0:00:08.3]} 69. Ra8 {[%clk 0:00:08.7]} 69... Rf2 {[%clk 0:00:08]} 70.
Rb8 {[%clk 0:00:09]} 70... Re2 {[%clk 0:00:07.8]} 71. Ra8 {[%clk 0:00:09.3]}
71... Rb2 {[%clk 0:00:08.1]} 72. Rc8 {[%clk 0:00:09.3]} 72... Rb6 {[%clk
0:00:06.6]} 73. Ra8 {[%clk 0:00:09.3]} 73... Rh6 {[%clk 0:00:06.1]} 74. Kh2
{[%clk 0:00:09.6]} 74... Kg6+ {[%clk 0:00:06]} 75. Kg1 {[%clk 0:00:09.8]} 75...
Kf5 {[%clk 0:00:06.4]} 76. Ra5+ {[%clk 0:00:09.5]} 76... Kg6 {[%clk 0:00:06.8]}
77. Ra6+ {[%clk 0:00:09.7]} 77... Kh5 {[%clk 0:00:07.5]} 78. Ra5 {[%clk
0:00:09]} 78... Kh4 {[%clk 0:00:07.1]} 79. Kh2 {[%clk 0:00:09.3]} 79... Kh5
{[%clk 0:00:06.9]} 80. Rb5 {[%clk 0:00:08.8]} 80... Re6 {[%clk 0:00:07.2]} 81.
Ra5 {[%clk 0:00:08.2]} 81... Re2 {[%clk 0:00:06.4]} 82. Rb5 {[%clk 0:00:08.1]}
82... Kh4 {[%clk 0:00:06.7]} 83. Rb8 {[%clk 0:00:07.9]} 83... Kh5 {[%clk
0:00:06.8]} 84. Rb6 {[%clk 0:00:07.5]} 84... Rd2 {[%clk 0:00:06.5]} 85. Ra6
{[%clk 0:00:07.7]} 85... Re2 {[%clk 0:00:05.3]} 86. Rb6 {[%clk 0:00:08.1]} 86...
g4 {[%clk 0:00:04.9]} 87. fxg4+ {[%clk 0:00:06.7]} 87... Kxg4 {[%clk 0:00:05.8]}
88. Rg6+ {[%clk 0:00:06.8]} 88... Kf5 {[%clk 0:00:06.2]} 89. Rg8 {[%clk
0:00:06.4]} 89... Re7 {[%clk 0:00:06.2]} 90. Rf8+ {[%clk 0:00:06.6]} 90... Ke4
{[%clk 0:00:06.5]} 91. Kg1 {[%clk 0:00:06.3]} 91... Ke3 {[%clk 0:00:07.1]} 92.
Rf6 {[%clk 0:00:05.9]} 92... Re4 {[%clk 0:00:06]} 93. Ra6 {[%clk 0:00:05.7]}
93... Rd4 {[%clk 0:00:05.8]} 94. Ra3+ {[%clk 0:00:06.1]} 94... Ke2 {[%clk
0:00:06]} 95. Ra2+ {[%clk 0:00:06.3]} 95... Ke3 {[%clk 0:00:06.7]} 96. Ra3+
{[%clk 0:00:06.6]} 96... Ke4 {[%clk 0:00:06.8]} 97. Ra2 {[%clk 0:00:06.9]} 97...
Kf5 {[%clk 0:00:06.3]} 98. Kf2 {[%clk 0:00:07.3]} 98... Kg4 {[%clk 0:00:06.8]}
99. Rb2 {[%clk 0:00:07.9]} 99... Rc4 {[%clk 0:00:06.5]} 100. Ra2 {[%clk
0:00:08]} 100... Rb4 {[%clk 0:00:07.1]} 101. Re2 {[%clk 0:00:08.5]} 101... Rb1
{[%clk 0:00:07]} 102. Rd2 {[%clk 0:00:08.8]} 102... Rh1 {[%clk 0:00:07.1]} 103.
Re2 {[%clk 0:00:09.2]} 103... Rh2 {[%clk 0:00:07.6]} 104. Rd2 {[%clk 0:00:08]}
104... Rh6 {[%clk 0:00:07.2]} 105. Re2 {[%clk 0:00:08.3]} 105... Rd6 {[%clk
0:00:07.3]} 106. Rc2 {[%clk 0:00:08.6]} 106... Rd3 {[%clk 0:00:07.2]} 107. Re2
{[%clk 0:00:08.8]} 107... Rc3 {[%clk 0:00:07.2]} 108. Rd2 {[%clk 0:00:08.9]}
108... Rb3 {[%clk 0:00:07.1]} 109. Re2 {[%clk 0:00:09.4]} 109... Ra3 {[%clk
0:00:07]} 110. Rd2 {[%clk 0:00:09.7]} 110... Re3 {[%clk 0:00:06.3]} 111. Rc2
{[%clk 0:00:08.3]} 111... Rd3 {[%clk 0:00:06.6]} 112. Re2 {[%clk 0:00:08.4]}
112... Kf5 {[%clk 0:00:06.4]} 113. Rc2 {[%clk 0:00:08.4]} 113... Ke4 {[%clk
0:00:06.9]} 114. Rc4+ {[%clk 0:00:08.4]} 114... Rd4 {[%clk 0:00:07.5]} 115.
Rxd4+ {[%clk 0:00:08.7]} 115... Kxd4 {[%clk 0:00:08.4]} 116. Kf3 {[%clk
0:00:09.3]} 116... Ke5 {[%clk 0:00:08.9]} 117. g3 {[%clk 0:00:09.7]} 117... fxg3
{[%clk 0:00:09.8]} 118. Kxg3 {[%clk 0:00:10.6]} 1/2-1/2